[Event "1st Caplin Menchik Memorial 2022"]
[Site "London"]
[Date "2022.06.19"]
[Round "2.1"]
[White "Yao, Lan"]
[Black "Schulze, Lara"]
[Result "1/2-1/2"]
[ECO "C58"]
[WhiteElo "2276"]
[BlackElo "2303"]
[Annotator "TA"]
[PlyCount "88"]
[EventDate "2022.06.21"]
[EventType "tourn"]
[EventCountry "ENG"]
[SourceTitle "playchess.com"]
[Source "ChessBase"]
[SourceQuality "1"]
[TimeControl "5400+30"]

{[%evp 14,88,45,22,7,20,40,40,40,28,73,0,0,0,16,7,43,36,40,38,50,54,114,129,122,68,79,31,37,27,66,52,102,29,35,28,33,16,16,0,22,-35,9,-27,0,0,0,0,0,8,10,0,-12,-7,-14,-60,-33,-32,-34,-37,-62,-60,-62,-48,-12,-12,0,0,0,-8,0,0,0,0,0,0,0]} 1. e4 {[%emt 0:00:02]} e5 {[%emt 0:00:03]} 2. Nf3 {[%emt 0:00:04]} Nc6 {[%emt 0:00:08]} 3. Bc4 {[%emt 0:00:05]} Nf6 {[%emt 0:00:08]} 4. Ng5 {[%emt 0:00:06]} d5 {[%emt 0:00:11]} 5. exd5 {[%emt 0:00:06]} Na5 {[%emt 0:00:08]} 6. Bb5+ {[%emt 0:00:03]} c6 {[%emt 0:00:11]} 7. dxc6 {[%emt 0:00:04]} bxc6 {[%emt 0:00:08]} 8. Qf3 {[%emt 0:00:04]} Be7 {[%emt 0:00:28] C58: Two Knights: 4 Ng5 d5 5 exd5 Na5 sidelines.} 9. Bd3 $1 {[%emt 0:00:06][%mdl 4] outshines the older 9.Bxc6+.} h6 {[%emt 0:02:40]} (9... O-O {is more complex.} 10. Nc3 Rb8 11. b3 Rb4) 10. Ne4 {[%emt 0:00:05]} Nd5 {[%emt 0:00:54][%cal Bf6d5,Bd5b4,Bb4d3][%mdl 32] White is slightly better.} 11. Ng3 {[%emt 0:00:13]} O-O {[%emt 0:03:07] [#] was the old line (11...g6).} 12. O-O {[%emt 0:03:15]} (12. Bf5 $1 $16) 12... Nb4 $11 {[%emt 0:05:35]} 13. Re1 {[%emt 0:08:32]} Nxd3 {[%emt 0:10:22]} 14. cxd3 {[%emt 0:00:08]} Rb8 {[%emt 0:06:06] [#]} 15. b3 $146 {[%emt 0:17:46]} ({Predecessor:} 15. Nc3 f5 16. Rxe5 Bd6 17. Re1 Rb4 18. d4 Rxd4 19. d3 Qh4 20. h3 c5 21. Nb5 {1-0 (53) Pasiev,R (2323)-Provotorov,I (2386) Voronezh 2012}) 15... c5 {[%emt 0:14:10]} 16. Bb2 {[%emt 0:07:33]} f6 {[%emt 0:13:11]} 17. Nc3 {[%emt 0:08:33]} c4 {[%emt 0:03:10]} (17... Rf7 $14) 18. Qd5+ $16 {[%emt 0:08:32]} ({Much less strong is} 18. dxc4 Nxc4 19. bxc4 Rxb2 $14) 18... Qxd5 {[%emt 0:07:51]} 19. Nxd5 {[%emt 0:00:02]} Bd8 {[%emt 0:00:25]} 20. dxc4 {[%emt 0:09:08]} (20. Ba3 $16 cxb3 21. Bd6 (21. Bxf8 b2 $11)) 20... Nxc4 $14 {[%emt 0:01:10]} 21. Bc3 {[%emt 0:00:50]} Nb6 {[%emt 0:02:40]} 22. Ne3 {[%emt 0:01:38] White is much more active. The black rooks are badly placed.} Bb7 {[%emt 0:03:22]} (22... Bc7 $14) 23. Bb4 {[%emt 0:03:45]} (23. Ngf5 $16) 23... Rf7 $11 {[%emt 0:01:12]} 24. Ngf5 {[%emt 0:00:57]} Rd7 {[%emt 0:02:13]} 25. Rac1 {[%emt 0:04:45]} Kh7 {[%emt 0:05:22]} 26. Nd6 {[%emt 0:09:50]} Be7 {[%emt 0:02:37]} 27. Nef5 {[%emt 0:00:23]} ({White should try} 27. Nxb7 $11 Bxb4 28. Nc5 Bxc5 29. Rxc5) 27... Bf8 {[%emt 0:01:11] A strong pair of Bishops.} (27... Nd5 $5 {[%cal Rd5b4]} 28. Ba3 Bf8 $15) 28. Bc5 {[%emt 0:01:54]} (28. Nxb7 $5 {[%cal Rb7c5]} Bxb4 29. Nc5 Bxc5 30. Rxc5 $11) 28... g6 {[%emt 0:05:52][%cal Bg7g6,Bg6f5,Bf5f4][%mdl 32]} (28... Ba8 $5 {[%cal Rg7g6]}) 29. Nxb7 {[%emt 0:00:25] [#] Nfd6 is the strong threat.} gxf5 {[%emt 0:01:07]} 30. Bxf8 {[%emt 0:02:00]} Rxf8 {[%emt 0:00:51]} 31. Na5 {[%emt 0:01:56]} Rxd2 {[%emt 0:00:55]} 32. Rc7+ {[%emt 0:00:06]} Kg6 {[%emt 0:03:29]} 33. a4 {[%emt 0:00:14]} Rf7 {[%emt 0:00:52]} 34. Rc3 {[%emt 0:08:10]} (34. Rxf7 $11 Kxf7 35. g3) 34... f4 {[%emt 0:00:51]} 35. g3 {[%emt 0:02:55]} Nd5 {[%emt 0:01:26]} 36. Rc6 {[%emt 0:01:01]} Nb4 {[%emt 0:01:42]} 37. Nc4 {[%emt 0:01:39]} Nxc6 {[%emt 0:01:56]} 38. Nxd2 {[%emt 0:00:02]} fxg3 {[%emt 0:00:12]} (38... Rd7 $5 {[%cal Rd7d2]} 39. Nc4 Nd4 $15) 39. hxg3 $15 {[%emt 0:00:11][%mdl 4096] Endgame KRN-KRN. The position is equal.} Rb7 {[%emt 0:00:10]} 40. Rc1 {[%emt 0:02:22]} Nd4 {[%emt 0:00:10] White must now prevent ...Ne2+.} 41. Kg2 {[%emt 0:00:37]} Nxb3 {[%emt 0:00:42]} 42. Nxb3 {[%emt 0:00:10]} Rxb3 {[%emt 0:00:04]} 43. Rc7 $1 {[%emt 0:00:04]} Ra3 {[%emt 0:01:15]} 44. Rxa7 {[%emt 0:00:05]} e4 {[%emt 0:00:50] Weighted Error Value: White=0.17 (very precise) /Black=0.13 (very precise)} 1/2-1/2

[Event "1st Caplin Menchik Memorial 2022"]
[Site "London"]
[Date "2022.06.19"]
[Round "2.2"]
[White "Arakhamia-Grant, Ketevan"]
[Black "Dworakowska, Joanna"]
[Result "0-1"]
[ECO "B20"]
[WhiteElo "2354"]
[BlackElo "2321"]
[Annotator "TA"]
[PlyCount "92"]
[EventDate "2022.06.21"]
[EventType "tourn"]
[EventCountry "ENG"]
[SourceTitle "playchess.com"]
[Source "ChessBase"]
[SourceQuality "1"]
[TimeControl "5400+30"]

{[%evp 9,92,-28,8,-10,-15,-16,0,-35,-23,-31,-31,-31,-31,-38,-38,-34,-32,-54,-54,-55,-61,-140,-146,-164,-175,-141,-145,-176,-180,-191,-186,-183,-173,-254,-244,-249,-261,-375,-367,-359,-354,-529,-631,-595,-634,-564,-630,-625,-516,-635,-635,-605,-623,-607,-598,-701,-693,-655,-645,-675,-671,-649,-639,-954,-898,-1720,-1710,-5616,-5381,-5289,-2989,-5800,-5035,-29976,-29978,-29978,-29978,-29978,-29979,-29978,-29979,-29979,-29980,-29973,-29965]} 1. e4 {[%emt 0:00:03]} c5 {[%emt 0:00:09]} 2. d3 {[%emt 0:00:08]} Nc6 {[%emt 0:00:44]} 3. g3 {[%emt 0:00:11]} d5 {[%emt 0:03:21]} 4. Nd2 {[%emt 0:00:27]} Nf6 {[%emt 0:05:17]} 5. Bg2 {[%emt 0:00:12]} b6 {[%emt 0:07:08]} 6. Ne2 {[%emt 0:03:43] B20: Sicilian: Unusual White 2nd moves.} e6 {[%emt 0:09:58]} 7. O-O {[%emt 0:00:29]} Be7 {[%emt 0:01:46]} 8. h3 {[%emt 0:01:18] The position is equal.} O-O {[%emt 0:01:42]} 9. f4 {[%emt 0:00:37]} dxe4 {[%emt 0:02:23]} 10. dxe4 {[%emt 0:02:06] [#]} Ba6 $146 {[%emt 0:03:16]} ({Predecessor:} 10... Bb7 11. g4 Qc7 12. Ng3 Rad8 13. g5 Ne8 14. h4 f6 15. Qg4 Nd4 16. Rb1 Nxc2 {½-½ (40) Darwisch,K (2078)-Mazarov,J (2075) Germany 2017}) 11. c4 {[%emt 0:13:48] Hoping for e5.} Qc7 {[%emt 0:07:15]} 12. e5 {[%emt 0:10:33] Threatens to win with Qa4.} Nd7 {[%emt 0:00:41]} 13. Qa4 {[%emt 0:07:15]} Bb7 {[%emt 0:01:43]} 14. Ne4 {[%emt 0:00:21]} Rad8 {[%emt 0:07:27]} 15. Be3 {[%emt 0:00:38] [#] White is now going downhill.} (15. Bd2 $15) 15... Ncxe5 $1 $17 {[%emt 0:05:32][%mdl 512]} 16. fxe5 {[%emt 0:33:32]} (16. Rad1 f5) 16... Bxe4 {[%emt 0:00:09]} 17. Bxe4 {[%emt 0:00:13] Strongly threatening Qc2.} Qxe5 {[%emt 0:00:02]} 18. Qc2 {[%emt 0:07:48]} f5 {[%emt 0:00:42][%cal Bf7f5,Bf5e4,Be4e3][%mdl 32]} 19. Bf4 {[%emt 0:14:22]} Qxe4 {[%emt 0:00:12]} 20. Qxe4 {[%emt 0:00:11]} fxe4 {[%emt 0:00:02]} 21. Nc3 {[%emt 0:00:40]} (21. Rad1 $142) 21... g5 $19 {[%emt 0:07:54]} 22. Be3 {[%emt 0:00:28]} Rf3 {[%emt 0:03:08]} 23. Bf2 {[%emt 0:01:35]} (23. Rxf3 $142 exf3 24. Rd1) 23... e3 {[%emt 0:01:38]} 24. Be1 {[%emt 0:00:03]} Ne5 {[%emt 0:00:39]} 25. b3 {[%emt 0:00:29]} (25. Rxf3 {was necessary.} Nxf3+ 26. Kg2) 25... Rdf8 {[%emt 0:02:18]} 26. Rxf3 {[%emt 0:00:27]} Nxf3+ {[%emt 0:00:03]} 27. Kf1 {[%emt 0:00:23]} Bf6 {[%emt 0:00:21]} 28. Rc1 {[%emt 0:00:30]} Be5 {[%emt 0:00:48]} 29. Ke2 {[%emt 0:01:20]} Nxe1 {[%emt 0:00:53]} 30. Kxe1 {[%emt 0:00:06]} Bxc3+ {[%emt 0:06:33]} 31. Rxc3 {[%emt 0:00:05][%mdl 4096] Endgame KR-KR} Rf3 {[%emt 0:00:02]} 32. h4 {[%emt 0:00:55]} g4 {[%emt 0:00:07][%cal Bg5g4,Bg4g3][%mdl 32]} 33. Rd3 {[%emt 0:00:17]} Rxg3 {[%emt 0:01:05]} 34. Rd7 {[%emt 0:00:17]} Rf3 {[%emt 0:04:18] aiming for ...g3.} 35. Ke2 {[%emt 0:01:13]} Rf7 {[%emt 0:01:21]} 36. Rd8+ {[%emt 0:00:12]} Kg7 {[%emt 0:00:15]} 37. Kxe3 {[%emt 0:00:17]} g3 {[%emt 0:00:42] ( -> ...g2)} 38. Rd2 {[%emt 0:00:13]} Kh6 {[%emt 0:00:09]} 39. Rg2 {[%emt 0:01:30]} Rg7 {[%emt 0:00:08] And now ...Kh5 would win.} 40. Kf4 {[%emt 0:00:58]} Kh5 {[%emt 0:00:22]} 41. Rxg3 {[%emt 0:00:32]} e5+ {[%emt 0:00:21][%cal Be6e5,Be5e4][%mdl 32] Black mates.} 42. Kf3 {[%emt 0:00:06]} e4+ {[%emt 0:00:08]} 43. Kf4 {[%emt 0:00:05]} Rxg3 {[%emt 0:00:09]} 44. Kxg3 {[%emt 0:00:03]} e3 {[%emt 0:00:05]} 45. Kf3 {[%emt 0:00:16]} Kxh4 {[%emt 0:00:05]} 46. Kxe3 {[%emt 0:00:04]} Kg3 {[%emt 0:00:04] Weighted Error Value: White=0.41/Black=0.05 (flawless)} 0-1

[Event "1st Caplin Menchik Memorial 2022"]
[Site "London"]
[Date "2022.06.19"]
[Round "2.3"]
[White "Toma, Katarzyna"]
[Black "Koubova, Anna Marie"]
[Result "1-0"]
[ECO "A08"]
[WhiteElo "2304"]
[BlackElo "2115"]
[Annotator "TA"]
[PlyCount "83"]
[EventDate "2022.06.21"]
[EventType "tourn"]
[EventCountry "ENG"]
[SourceTitle "playchess.com"]
[Source "ChessBase"]
[SourceQuality "1"]
[TimeControl "5400+30"]

{[%evp 20,83,32,15,15,-35,-38,-44,13,-72,-24,-44,-45,-70,-15,-24,-20,-22,-17,-34,-24,-42,-16,-10,-47,-64,-51,-47,-24,-42,-61,-35,-26,-33,-51,-125,0,-89,11,11,18,19,25,17,94,91,105,9,186,186,190,129,133,139,717,710,679,669,825,843,797,475,29990,29991,29993,29989]} 1. e4 {[%emt 0:00:04]} e6 {[%emt 0:00:21]} 2. d3 {[%emt 0:01:17]} d5 {[%emt 0:02:50]} 3. Nd2 {[%emt 0:00:08]} c5 {[%emt 0:00:38]} 4. g3 {[%emt 0:00:20]} Bd6 {[%emt 0:07:07]} 5. Bg2 {[%emt 0:00:22]} Ne7 {[%emt 0:00:59]} 6. Ngf3 {[%emt 0:00:48]} Nbc6 {[%emt 0:00:49]} 7. O-O {[%emt 0:00:46]} O-O {[%emt 0:02:43]} 8. Re1 {[%emt 0:00:12]} Qc7 {[%emt 0:00:55]} 9. Qe2 {[%emt 0:04:24]} f6 {[%emt 0:01:16]} 10. c3 {[%emt 0:02:22]} Bd7 {[%emt 0:09:27]} 11. a3 {[%emt 0:03:36]} d4 {[%emt 0:04:53] A08: King's Indian Attack.} 12. a4 {[%emt 0:08:40]} ({Better is} 12. Nc4 $11) 12... e5 $15 {[%emt 0:05:24]} 13. Nc4 {[%emt 0:00:46]} b6 {[%emt 0:09:51] [#]} ({Black should try} 13... Bg4 $15) 14. Nfd2 $146 {[%emt 0:04:21]} (14. cxd4 $11 Nxd4 15. Nxd4 cxd4 16. Bd2) ({Predecessor:} 14. Bd2 a6 15. a5 Nxa5 16. Nxa5 bxa5 17. cxd4 cxd4 18. Bxa5 Qb7 19. Nd2 Bb4 20. Bxb4 Qxb4 {0-1 (58) Kalisky,V (2224)-Kubik,M (2203) Frydek Mistek 2014}) 14... a6 {[%emt 0:04:50]} (14... Be6 $17) 15. Nxd6 {[%emt 0:04:04]} Qxd6 {[%emt 0:00:45]} 16. f4 {[%emt 0:09:01]} b5 {[%emt 0:04:36]} ({Don't play} 16... exf4 17. Nc4 Qb8 18. Bxf4 $14) (16... Na5 $15) 17. f5 {[%emt 0:04:54]} Na5 {[%emt 0:05:57]} 18. axb5 {[%emt 0:07:17]} axb5 {[%emt 0:01:05]} 19. h4 {[%emt 0:02:01]} Nec6 {[%emt 0:15:29]} 20. Kh2 {[%emt 0:02:12]} Nb7 {[%emt 0:06:10]} 21. Rxa8 {[%emt 0:02:05]} Rxa8 {[%emt 0:00:07]} 22. g4 {[%emt 0:05:56]} dxc3 {[%emt 0:02:13]} 23. bxc3 {[%emt 0:00:06]} Ra2 {[%emt 0:00:48]} 24. Qd1 {[%emt 0:03:29] Prevents Rc2.} Nba5 {[%emt 0:01:41] Against Qb3+} 25. Nb3 {[%emt 0:04:02]} Be8 {[%emt 0:04:11]} 26. Be3 {[%emt 0:03:09] Hoping for Qb1.} c4 {[%emt 0:01:16]} 27. Nc1 {[%emt 0:03:15]} (27. Nxa5 $15 Nxa5 28. dxc4 Nxc4 29. Qxd6 Nxd6 30. Kg1) 27... Rb2 {[%emt 0:01:12]} (27... Ra3 $1 $17 {Threatens to win with ...b4.} 28. Qd2 cxd3 29. Nxd3 Nc4) 28. Kg3 {[%emt 0:02:34]} (28. Re2 $11 Rxe2 29. Qxe2) 28... Nb3 {[%emt 0:03:41] Pair of Knights!} (28... Qa3 $17 29. Re2 Qxc3 30. Rxb2 Qxb2 31. dxc4 Qc3) 29. dxc4 $11 {[%emt 0:02:13]} Qxd1 {[%emt 0:00:23]} 30. Rxd1 {[%emt 0:00:05]} bxc4 {[%emt 0:00:31] ...Rc2 is the strong threat.} 31. Bf1 {[%emt 0:00:22] aiming for Nxb3.} Nca5 {[%emt 0:01:47] [#]} (31... Nba5 $1 $11 {keeps the balance.}) 32. Nxb3 $1 $16 {[%emt 0:09:53]} Rxb3 {[%emt 0:01:13] [#]} 33. Bd2 {[%emt 0:02:55]} ({Don't do} 33. Rd8 Rxc3 34. Kf2 (34. Rxe8+ Kf7 $11) 34... Rc2+ 35. Rd2 Rc3 $11) ({White should play} 33. Rc1 $1 $16) 33... Bb5 $2 {[%emt 0:00:57]} (33... Ra3 $1 $11 {and Black has nothing to worry.}) 34. Ra1 $18 {[%emt 0:01:35]} Nc6 {[%emt 0:00:06]} 35. Kf2 {[%emt 0:01:00]} (35. Ra8+ $18 Kf7 36. g5) 35... h6 $16 {[%emt 0:01:03]} 36. Be2 {[%emt 0:00:46]} Kh7 $2 {[%emt 0:00:24][%mdl 8192] Black cannot hold the game after this.} (36... Kf7 $16 37. g5 hxg5) 37. g5 $18 {[%emt 0:00:51]} hxg5 {[%emt 0:00:31]} 38. hxg5 {[%emt 0:00:27] g6+ would kill now.} fxg5 {[%emt 0:00:05]} 39. Bh5 {[%emt 0:00:15] Threatening mate with Bg6+.} Ne7 {[%emt 0:00:47] Prevents Bg6+.} 40. Bxg5 {[%emt 0:00:56]} Nc8 {[%emt 0:00:27]} (40... Rb2+ $18 41. Kg3 Bc6 42. Bxe7 Kg8) 41. Bf7 {[%emt 0:01:25][%cal Ra1h1]} g6 {[%emt 0:00:33]} 42. f6 {[%emt 0:00:31] Weighted Error Value: White=0.32/Black=0.64} 1-0

[Event "1st Caplin Menchik Memorial 2022"]
[Site "London"]
[Date "2022.06.19"]
[Round "2.4"]
[White "Hryshchenko, Kamila"]
[Black "Vidic, Teja"]
[Result "1-0"]
[ECO "C68"]
[WhiteElo "2037"]
[BlackElo "2168"]
[Annotator "TA"]
[PlyCount "89"]
[EventDate "2022.06.21"]
[EventType "tourn"]
[EventCountry "ENG"]
[SourceTitle "playchess.com"]
[Source "ChessBase"]
[SourceQuality "1"]
[TimeControl "5400+30"]

{[%evp 15,89,-17,-3,-36,-33,-53,0,7,8,18,9,20,20,15,22,12,22,22,22,12,18,0,20,0,0,0,20,8,31,32,34,32,84,87,147,127,185,198,198,89,192,147,190,147,143,125,122,124,130,124,125,125,124,124,145,129,142,136,266,272,400,393,745,740,738,738,837,720,29984,29985,29984,29985,29985,29986,29986,5143]} 1. e4 {[%emt 0:00:02]} e5 {[%emt 0:00:06]} 2. Nf3 {[%emt 0:00:10]} Nc6 {[%emt 0:00:10]} 3. Bb5 {[%emt 0:00:08]} a6 {[%emt 0:00:15]} 4. Bxc6 {[%emt 0:00:30]} dxc6 {[%emt 0:00:17]} 5. O-O {[%emt 0:00:37]} Bg4 {[%emt 0:00:49]} 6. d3 {[%emt 0:03:58]} Qf6 {[%emt 0:00:38]} 7. Nbd2 {[%emt 0:04:33]} Ne7 {[%emt 0:00:29]} 8. h3 {[%emt 0:02:49]} h5 {[%emt 0:00:23][%cal Og7g5]} 9. Qe1 {[%emt 0:06:13] [#] C68: Ruy Lopez: Exchange Variation, sidelines.} Ng6 $1 {[%emt 0:01:00][%cal Og6f4]} 10. d4 {[%emt 0:05:30] [#]} (10. hxg4 $2 hxg4 11. a3 (11. Nh2 $2 Qh4 $19) 11... Nf4 $19) (10. Qe3 Be6) 10... Nf4 $146 {[%emt 0:20:31]} ({Predecessor:} 10... O-O-O 11. Nxe5 Nxe5 12. dxe5 Qxe5 13. Nb3 Bd7 14. f4 Qe8 15. Qe2 c5 16. Rd1 f6 {0-1 (50) Rimkus,B (2129)-Braziulis,V (2371) ICCF email 2014}) 11. dxe5 $11 {[%emt 0:19:10] The position is equal.} (11. hxg4 hxg4 12. g3 gxf3 13. Nxf3 Qe6 $1 14. Bxf4 Qh3 $19) 11... Qg6 {[%emt 0:00:08] ( -> ...Bxf3)} 12. Nh4 {[%emt 0:03:05]} (12. hxg4 $2 hxg4 13. g3 gxf3 14. Nxf3 Qg4 $19) 12... Qg5 {[%emt 0:01:10][%csl LRe5,LRh4]} 13. Ndf3 {[%emt 0:21:01]} Bxf3 {[%emt 0:00:11][%mdl 64] Pin} 14. Bxf4 {[%emt 0:00:23]} Qxh4 {[%emt 0:00:07]} 15. Qe3 {[%emt 0:00:21]} Bxg2 {[%emt 0:06:38]} 16. Kxg2 {[%emt 0:00:17]} Bc5 {[%emt 0:00:52]} 17. Qf3 {[%emt 0:11:00]} O-O-O {[%emt 0:01:23]} 18. Rad1 {[%emt 0:04:43]} Rdg8 {[%emt 0:00:30]} 19. Rd3 {[%emt 0:08:01]} Qe7 {[%emt 0:00:25]} 20. Rfd1 {[%emt 0:01:03]} g5 {[%emt 0:05:31]} 21. Bg3 {[%emt 0:00:16][%cal Od3d7]} h4 {[%emt 0:02:25]} 22. Qf5+ {[%emt 0:01:55]} Qe6 {[%emt 0:00:37]} 23. Bh2 {[%emt 0:00:33] Hoping for Rd7.} g4 {[%emt 0:00:24] [#]} ({Black should try} 23... Rf8 $14) 24. Rd7 $1 $16 {[%emt 0:03:06]} gxh3+ {[%emt 0:15:27]} (24... Kb8 $142) 25. Kxh3 {[%emt 0:00:38]} Rh5 {[%emt 0:00:09]} (25... Rd8 $16 26. Rxd8+ Rxd8 27. Qxe6+ fxe6 28. Rxd8+ Kxd8) 26. Qxe6 $18 {[%emt 0:00:31] Chess con chili.} fxe6 {[%emt 0:00:06]} 27. Rf7 {[%emt 0:00:14]} (27. f4 $18 {and White stays clearly on top.}) 27... Rd8 {[%emt 0:03:39]} (27... Rhg5 $16) 28. Rxd8+ {[%emt 0:02:13]} Kxd8 {[%emt 0:00:06][%mdl 4096] Endgame KRB-KRB} 29. c3 {[%emt 0:00:41]} Be7 {[%emt 0:01:02]} 30. f4 {[%emt 0:01:01]} Ke8 {[%emt 0:00:31]} 31. Rg7 {[%emt 0:00:07]} Kf8 {[%emt 0:00:10]} 32. Rg1 {[%emt 0:00:14]} Kf7 {[%emt 0:00:59]} 33. Rd1 {[%emt 0:00:29] Black must now prevent Rd7.} Ke8 {[%emt 0:00:14] Against Rd7} 34. Rf1 {[%emt 0:00:41] White is more active.} Bc5 {[%emt 0:11:23]} 35. f5 {[%emt 0:00:33]} Kf7 {[%emt 0:01:07]} 36. Rf4 {[%emt 0:00:46]} exf5 {[%emt 0:01:26]} (36... Be7 $16 {was called for.} 37. f6 Bc5) 37. exf5 {[%emt 0:00:27]} (37. Rxf5+ Kg6 $16) 37... Be3 {[%emt 0:00:26]} (37... Rg5 {was necessary.} 38. b4 (38. Kxh4 Rg2 $16) (38. Rxh4 Rxf5 39. Rh7+ Ke8 $14) 38... Bf8) 38. Rf3 {[%emt 0:00:12]} Bb6 {[%emt 0:00:41]} (38... Bc5 39. Kg4 Rh8) 39. Kg4 {[%emt 0:01:09]} Rh8 {[%emt 0:00:06]} 40. Bf4 {[%emt 0:00:25]} a5 {[%emt 0:03:51]} 41. Bg5 {[%emt 0:00:15] aiming for e6+.} a4 {[%emt 0:00:34]} 42. e6+ {[%emt 0:00:20] White mates.} Kg7 {[%emt 0:00:21]} 43. f6+ {[%emt 0:00:07][%cal Bf5f6,Bf6f7][%mdl 32]} Kg6 {[%emt 0:00:04]} 44. f7 {[%emt 0:00:50]} Bc5 {[%emt 0:00:54]} 45. e7 {[%emt 0:00:09] Weighted Error Value: White=0.08 (flawless) /Black=0.42} (45. Rf6+ $142 Kg7 46. Rf5 a3 47. bxa3 Rf8 48. Rxc5 Rxf7 49. exf7 Kxf7 50. Re5) 1-0

[Event "1st Caplin Menchik Memorial 2022"]
[Site "London"]
[Date "2022.06.19"]
[Round "2.5"]
[White "Varney, Zoe"]
[Black "Hunt, Harriet V"]
[Result "0-1"]
[ECO "A13"]
[WhiteElo "2046"]
[BlackElo "2395"]
[Annotator "TA"]
[PlyCount "76"]
[EventDate "2022.06.21"]
[EventType "tourn"]
[EventCountry "ENG"]
[SourceTitle "playchess.com"]
[Source "ChessBase"]
[SourceQuality "1"]
[TimeControl "5400+30"]

{[%evp 9,76,3,11,3,14,10,9,0,0,0,0,0,0,0,0,0,0,0,0,0,28,24,22,35,30,31,70,21,60,61,65,38,28,22,41,18,15,0,7,-15,0,-244,-221,-210,-211,-401,-298,-265,-183,-176,-191,-189,455,-79,-51,-55,-69,-100,-33,-153,-154,-355,-355,-345,-337,-732,-737,-705,-683]} 1. e3 {[%emt 0:00:05]} Nf6 {[%emt 0:02:29]} 2. Nf3 {[%emt 0:00:06]} e6 {[%emt 0:00:59]} 3. b3 {[%emt 0:00:15]} b6 {[%emt 0:00:44]} 4. Bb2 {[%emt 0:00:59]} Bb7 {[%emt 0:00:21]} 5. c4 {[%emt 0:00:32]} d5 {[%emt 0:03:56]} 6. Nc3 {[%emt 0:03:18] A13: English Opening: 1...e6.} a6 {[%emt 0:00:40]} 7. d4 {[%emt 0:08:18]} Bd6 {[%emt 0:02:16]} 8. Be2 {[%emt 0:03:58] The position is equal.} Nbd7 {[%emt 0:01:29]} 9. O-O {[%emt 0:02:21]} O-O {[%emt 0:00:59]} 10. Qc2 {[%emt 0:04:01]} Qe7 {[%emt 0:04:57]} 11. Rfd1 {[%emt 0:09:37]} Rac8 {[%emt 0:04:51]} 12. Rac1 {[%emt 0:14:39]} Rfe8 {[%emt 0:08:40]} 13. Qb1 {[%emt 0:13:15]} dxc4 {[%emt 0:14:36]} 14. bxc4 {[%emt 0:03:16]} e5 {[%emt 0:01:56] [#]} 15. dxe5 $146 {[%emt 0:04:16]} ({Predecessor:} 15. Qf5 g6 16. Qg5 exd4 17. exd4 Ba3 18. Bxa3 Qxa3 19. Ne5 Kg7 20. h4 Qe7 21. f4 {½-½ (50) Dreev,A (2670)-Nihal,S (2576) St Petersburg 2018}) 15... Nxe5 {[%emt 0:00:44]} 16. Nd5 {[%emt 0:00:32]} Nxd5 {[%emt 0:03:33]} 17. cxd5 {[%emt 0:00:20]} Ng6 {[%emt 0:14:33]} 18. Ba1 {[%emt 0:08:31]} (18. g3 $14) 18... b5 {[%emt 0:01:54]} 19. a4 {[%emt 0:05:31]} ({Don't play} 19. Qb2 f6 $11) 19... b4 $1 {[%emt 0:00:21]} 20. Qb2 {[%emt 0:00:51][%csl Ga1][%cal Rb2g7] [#]} f6 {[%emt 0:01:02]} 21. Qd4 {[%emt 0:01:14]} Ra8 {[%emt 0:03:18]} 22. Bd3 {[%emt 0:03:23]} Bc8 {[%emt 0:06:51]} 23. a5 {[%emt 0:04:45]} Bd7 {[%emt 0:01:04]} 24. Nh4 {[%emt 0:02:26]} Qe5 {[%emt 0:02:41]} 25. Nxg6 $2 {[%emt 0:02:24]} (25. Qxe5 $1 $11 Nxe5 26. Bf5) 25... Qxh2+ $19 {[%emt 0:00:14]} 26. Kf1 {[%emt 0:00:01] And now Nh4 would win.} hxg6 {[%emt 0:00:25] Really sharp!} 27. Bxg6 {[%emt 0:00:31]} (27. Ke2 Re5 28. Rh1 Qxg2 29. Rcg1 Qxd5 30. Qxd5+ Rxd5 31. Be4 Bb5+ 32. Kf3 Rf5+ 33. Bxf5 gxf5 34. Rh5) 27... Bb5+ {[%emt 0:06:14]} 28. Bd3 {[%emt 0:00:06]} Re5 {[%emt 0:00:58] Hoping for ...Rg5.} 29. Bxb5 {[%emt 0:03:25]} axb5 {[%emt 0:00:07]} 30. Qg4 {[%emt 0:01:26]} Qh1+ {[%emt 0:02:10]} (30... Rg5 $19 {and Black stays clearly on top.} 31. Qh3 Qxh3 32. gxh3 Rxa5) 31. Ke2 $17 {[%emt 0:00:03]} Qh5 {[%emt 0:00:08]} 32. Qxh5 {[%emt 0:00:20]} Rxh5 {[%emt 0:00:05]} 33. g4 {[%emt 0:00:50] [#]} Rh2 {[%emt 0:01:02]} (33... Rg5 $1 $17 34. f3 Rxa5) 34. Rg1 {[%emt 0:00:44]} (34. g5 $15) 34... Rxa5 {[%emt 0:00:47] Threatens to win with ...Ra2+.} 35. Rc2 {[%emt 0:01:03] Prevents Ra2. This costs White the game.} (35. Kf3 $17 {was called for.}) 35... b3 $19 {[%emt 0:00:19][%cal Bb4b3,Bb3b2][%mdl 32]} 36. Rd2 {[%emt 0:00:33]} Bb4 {[%emt 0:00:55]} 37. Rd4 {[%emt 0:00:32]} (37. Rb2 Bc3 38. Rbb1 Ra2+ 39. Kd3 Bxa1 40. Rxa1) 37... Ra2+ {[%emt 0:00:14]} 38. Kd3 {[%emt 0:00:16]} b2 {[%emt 0:00:53] Weighted Error Value: White=0.48/Black=0.29 (precise)} 0-1